{"text_format":"3","workbook":"xlsx","n_sheets":2,"sheets":["Zu erledigende Aufgaben","Aufgabenliste"],"not_rendered":{"defined_names":1},"read":"whole","date_system":"1900"}

{"sheet":"Zu erledigende Aufgaben","index":0,"n_rows":12,"n_cols":4,"rows_kept":12,"merged":[[2,3,2,6],[3,3,3,6],[4,3,4,6],[5,3,5,6],[6,3,6,6],[7,3,7,6],[8,3,8,6],[9,3,9,6],[10,3,10,6],[11,3,11,6],[12,3,12,6],[13,3,13,6],[14,3,14,6],[15,3,15,6],[16,3,16,6],[17,3,17,6],[18,3,18,6],[19,3,19,6],[20,3,20,6],[21,3,21,6]]}
[null,"  "]
[]
[null,null,1,"Reise nach München planen"]
[null,null,2,"Konferenzgespräch mit dem Kunden"]
[null,null,3,"Mittagessen mit Paul"]
[null,null,4,"Unternehmensschulung"]
[null,null,5,"In den Supermarkt gehen"]
[null,null,6,"Team-Building"]
[null,null,7,"Fotos für die Kinder"]
[null,null,8,"Termin mit Janna"]
[null,null,9,"Rechnungen des laufenden Monats prüfen"]
[null,null,10,"Zur Schule gehen"]

{"sheet":"Aufgabenliste","index":1,"n_rows":20,"n_cols":10,"rows_kept":20}
[{"$nulls":8},"Datum:","2016-03-10"]
[]
[null,null,"Aufgabe","Priorität","Status","Startdatum","Fälligkeitsdatum","% abgeschlossen","Erledigt/überfällig?","Notizen"]
[null,{"$f":"'Zu erledigende Aufgaben'!C3&\"\"","v":"1"},{"$f":"IF(ISBLANK('Zu erledigende Aufgaben'!D3),\"\",'Zu erledigende Aufgaben'!D3)","v":"Reise nach München planen"},"Normal","Abgeschlossen","2016-03-22","2016-03-31",{"v":1,"d":"100%"},{"$f":"IF(AND(Table1[[#This Row],[Status]]=\"Abgeschlossen\",Table1[[#This Row],[% abgeschlossen]]=1),1,IF(ISBLANK(Table1[[#This Row],[Fälligkeitsdatum]]),2,IF(AND(Table1[[#This Row],[Status]]<>\"Abgeschlossen\",TODAY()>Table1[[#This Row],[Fälligkeitsdatum]]),3,2)))","v":1}]
[null,{"$f":"'Zu erledigende Aufgaben'!C4&\"\"","v":"2"},{"$f":"IF(ISBLANK('Zu erledigende Aufgaben'!D4),\"\",'Zu erledigende Aufgaben'!D4)","v":"Konferenzgespräch mit dem Kunden"},"Hoch","In Bearbeitung","2016-03-12","2016-04-06",{"v":0.75,"d":"75%"},{"$f":"IF(AND(Table1[[#This Row],[Status]]=\"Abgeschlossen\",Table1[[#This Row],[% abgeschlossen]]=1),1,IF(ISBLANK(Table1[[#This Row],[Fälligkeitsdatum]]),2,IF(AND(Table1[[#This Row],[Status]]<>\"Abgeschlossen\",TODAY()>Table1[[#This Row],[Fälligkeitsdatum]]),3,2)))","v":3}]
[null,{"$f":"'Zu erledigende Aufgaben'!C5&\"\"","v":"3"},{"$f":"IF(ISBLANK('Zu erledigende Aufgaben'!D5),\"\",'Zu erledigende Aufgaben'!D5)","v":"Mittagessen mit Paul"},"Normal","Abgeschlossen","2016-03-02","2016-03-31",{"v":0.25,"d":"25%"},{"$f":"IF(AND(Table1[[#This Row],[Status]]=\"Abgeschlossen\",Table1[[#This Row],[% abgeschlossen]]=1),1,IF(ISBLANK(Table1[[#This Row],[Fälligkeitsdatum]]),2,IF(AND(Table1[[#This Row],[Status]]<>\"Abgeschlossen\",TODAY()>Table1[[#This Row],[Fälligkeitsdatum]]),3,2)))","v":2}]
[null,{"$f":"'Zu erledigende Aufgaben'!C6&\"\"","v":"4"},{"$f":"IF(ISBLANK('Zu erledigende Aufgaben'!D6),\"\",'Zu erledigende Aufgaben'!D6)","v":"Unternehmensschulung"},"Hoch","Abgeschlossen","2016-03-30","2016-05-27",{"v":1,"d":"100%"},{"$f":"IF(AND(Table1[[#This Row],[Status]]=\"Abgeschlossen\",Table1[[#This Row],[% abgeschlossen]]=1),1,IF(ISBLANK(Table1[[#This Row],[Fälligkeitsdatum]]),2,IF(AND(Table1[[#This Row],[Status]]<>\"Abgeschlossen\",TODAY()>Table1[[#This Row],[Fälligkeitsdatum]]),3,2)))","v":1}]
[null,{"$f":"'Zu erledigende Aufgaben'!C7&\"\"","v":"5"},{"$f":"IF(ISBLANK('Zu erledigende Aufgaben'!D7),\"\",'Zu erledigende Aufgaben'!D7)","v":"In den Supermarkt gehen"},"Niedrig","Abgeschlossen","2016-03-01","2016-05-02",{"v":0.5,"d":"50%"},{"$f":"IF(AND(Table1[[#This Row],[Status]]=\"Abgeschlossen\",Table1[[#This Row],[% abgeschlossen]]=1),1,IF(ISBLANK(Table1[[#This Row],[Fälligkeitsdatum]]),2,IF(AND(Table1[[#This Row],[Status]]<>\"Abgeschlossen\",TODAY()>Table1[[#This Row],[Fälligkeitsdatum]]),3,2)))","v":2}]
[null,{"$f":"'Zu erledigende Aufgaben'!C8&\"\"","v":"6"},{"$f":"IF(ISBLANK('Zu erledigende Aufgaben'!D8),\"\",'Zu erledigende Aufgaben'!D8)","v":"Team-Building"},"Hoch","Abgeschlossen","2016-03-15","2016-06-25",{"v":0.75,"d":"75%"},{"$f":"IF(AND(Table1[[#This Row],[Status]]=\"Abgeschlossen\",Table1[[#This Row],[% abgeschlossen]]=1),1,IF(ISBLANK(Table1[[#This Row],[Fälligkeitsdatum]]),2,IF(AND(Table1[[#This Row],[Status]]<>\"Abgeschlossen\",TODAY()>Table1[[#This Row],[Fälligkeitsdatum]]),3,2)))","v":2}]
[null,{"$f":"'Zu erledigende Aufgaben'!C9&\"\"","v":"7"},{"$f":"IF(ISBLANK('Zu erledigende Aufgaben'!D9),\"\",'Zu erledigende Aufgaben'!D9)","v":"Fotos für die Kinder"},"Normal","Abgeschlossen","2016-03-02","2016-03-29",{"v":0.5,"d":"50%"},{"$f":"IF(AND(Table1[[#This Row],[Status]]=\"Abgeschlossen\",Table1[[#This Row],[% abgeschlossen]]=1),1,IF(ISBLANK(Table1[[#This Row],[Fälligkeitsdatum]]),2,IF(AND(Table1[[#This Row],[Status]]<>\"Abgeschlossen\",TODAY()>Table1[[#This Row],[Fälligkeitsdatum]]),3,2)))","v":2}]
[null,{"$f":"'Zu erledigende Aufgaben'!C10&\"\"","v":"8"},{"$f":"IF(ISBLANK('Zu erledigende Aufgaben'!D10),\"\",'Zu erledigende Aufgaben'!D10)","v":"Termin mit Janna"},"Niedrig","In Bearbeitung","2016-03-03","2016-03-30",{"v":0.5,"d":"50%"},{"$f":"IF(AND(Table1[[#This Row],[Status]]=\"Abgeschlossen\",Table1[[#This Row],[% abgeschlossen]]=1),1,IF(ISBLANK(Table1[[#This Row],[Fälligkeitsdatum]]),2,IF(AND(Table1[[#This Row],[Status]]<>\"Abgeschlossen\",TODAY()>Table1[[#This Row],[Fälligkeitsdatum]]),3,2)))","v":3}]
[null,{"$f":"'Zu erledigende Aufgaben'!C11&\"\"","v":"9"},{"$f":"IF(ISBLANK('Zu erledigende Aufgaben'!D11),\"\",'Zu erledigende Aufgaben'!D11)","v":"Rechnungen des laufenden Monats prüfen"},"Normal","Abgeschlossen","2016-03-04","2016-05-05",{"v":0.25,"d":"25%"},{"$f":"IF(AND(Table1[[#This Row],[Status]]=\"Abgeschlossen\",Table1[[#This Row],[% abgeschlossen]]=1),1,IF(ISBLANK(Table1[[#This Row],[Fälligkeitsdatum]]),2,IF(AND(Table1[[#This Row],[Status]]<>\"Abgeschlossen\",TODAY()>Table1[[#This Row],[Fälligkeitsdatum]]),3,2)))","v":2}]
[null,{"$f":"'Zu erledigende Aufgaben'!C12&\"\"","v":"10"},{"$f":"IF(ISBLANK('Zu erledigende Aufgaben'!D12),\"\",'Zu erledigende Aufgaben'!D12)","v":"Zur Schule gehen"},"Niedrig","Noch nicht begonnen","2016-05-02","2016-09-01",{"v":0.75,"d":"75%"},{"$f":"IF(AND(Table1[[#This Row],[Status]]=\"Abgeschlossen\",Table1[[#This Row],[% abgeschlossen]]=1),1,IF(ISBLANK(Table1[[#This Row],[Fälligkeitsdatum]]),2,IF(AND(Table1[[#This Row],[Status]]<>\"Abgeschlossen\",TODAY()>Table1[[#This Row],[Fälligkeitsdatum]]),3,2)))","v":2}]
[null,{"$f":"'Zu erledigende Aufgaben'!C13&\"\"","v":""},{"$f":"IF(ISBLANK('Zu erledigende Aufgaben'!D13),\"\",'Zu erledigende Aufgaben'!D13)","v":""},{"$nulls":5},{"$f":"IF(AND(Table1[[#This Row],[Status]]=\"Abgeschlossen\",Table1[[#This Row],[% abgeschlossen]]=1),1,IF(ISBLANK(Table1[[#This Row],[Fälligkeitsdatum]]),2,IF(AND(Table1[[#This Row],[Status]]<>\"Abgeschlossen\",TODAY()>Table1[[#This Row],[Fälligkeitsdatum]]),3,2)))","v":2}]
[null,{"$f":"'Zu erledigende Aufgaben'!C14&\"\"","v":""},{"$f":"IF(ISBLANK('Zu erledigende Aufgaben'!D14),\"\",'Zu erledigende Aufgaben'!D14)","v":""},{"$nulls":5},{"$f":"IF(AND(Table1[[#This Row],[Status]]=\"Abgeschlossen\",Table1[[#This Row],[% abgeschlossen]]=1),1,IF(ISBLANK(Table1[[#This Row],[Fälligkeitsdatum]]),2,IF(AND(Table1[[#This Row],[Status]]<>\"Abgeschlossen\",TODAY()>Table1[[#This Row],[Fälligkeitsdatum]]),3,2)))","v":2}]
[null,{"$f":"'Zu erledigende Aufgaben'!C15&\"\"","v":""},{"$f":"IF(ISBLANK('Zu erledigende Aufgaben'!D15),\"\",'Zu erledigende Aufgaben'!D15)","v":""},{"$nulls":5},{"$f":"IF(AND(Table1[[#This Row],[Status]]=\"Abgeschlossen\",Table1[[#This Row],[% abgeschlossen]]=1),1,IF(ISBLANK(Table1[[#This Row],[Fälligkeitsdatum]]),2,IF(AND(Table1[[#This Row],[Status]]<>\"Abgeschlossen\",TODAY()>Table1[[#This Row],[Fälligkeitsdatum]]),3,2)))","v":2}]
[null,{"$f":"'Zu erledigende Aufgaben'!C16&\"\"","v":""},{"$f":"IF(ISBLANK('Zu erledigende Aufgaben'!D16),\"\",'Zu erledigende Aufgaben'!D16)","v":""},{"$nulls":5},{"$f":"IF(AND(Table1[[#This Row],[Status]]=\"Abgeschlossen\",Table1[[#This Row],[% abgeschlossen]]=1),1,IF(ISBLANK(Table1[[#This Row],[Fälligkeitsdatum]]),2,IF(AND(Table1[[#This Row],[Status]]<>\"Abgeschlossen\",TODAY()>Table1[[#This Row],[Fälligkeitsdatum]]),3,2)))","v":2}]
[null,{"$f":"'Zu erledigende Aufgaben'!C17&\"\"","v":""},{"$f":"IF(ISBLANK('Zu erledigende Aufgaben'!D17),\"\",'Zu erledigende Aufgaben'!D17)","v":""},{"$nulls":5},{"$f":"IF(AND(Table1[[#This Row],[Status]]=\"Abgeschlossen\",Table1[[#This Row],[% abgeschlossen]]=1),1,IF(ISBLANK(Table1[[#This Row],[Fälligkeitsdatum]]),2,IF(AND(Table1[[#This Row],[Status]]<>\"Abgeschlossen\",TODAY()>Table1[[#This Row],[Fälligkeitsdatum]]),3,2)))","v":2}]
[null,{"$f":"'Zu erledigende Aufgaben'!C18&\"\"","v":""},{"$f":"IF(ISBLANK('Zu erledigende Aufgaben'!D18),\"\",'Zu erledigende Aufgaben'!D18)","v":""},{"$nulls":5},{"$f":"IF(AND(Table1[[#This Row],[Status]]=\"Abgeschlossen\",Table1[[#This Row],[% abgeschlossen]]=1),1,IF(ISBLANK(Table1[[#This Row],[Fälligkeitsdatum]]),2,IF(AND(Table1[[#This Row],[Status]]<>\"Abgeschlossen\",TODAY()>Table1[[#This Row],[Fälligkeitsdatum]]),3,2)))","v":2}]
[null,{"$f":"'Zu erledigende Aufgaben'!C19&\"\"","v":""},{"$f":"IF(ISBLANK('Zu erledigende Aufgaben'!D19),\"\",'Zu erledigende Aufgaben'!D19)","v":""},{"$nulls":5},{"$f":"IF(AND(Table1[[#This Row],[Status]]=\"Abgeschlossen\",Table1[[#This Row],[% abgeschlossen]]=1),1,IF(ISBLANK(Table1[[#This Row],[Fälligkeitsdatum]]),2,IF(AND(Table1[[#This Row],[Status]]<>\"Abgeschlossen\",TODAY()>Table1[[#This Row],[Fälligkeitsdatum]]),3,2)))","v":2}]